fUSD/lending_fUSD_20240115
["ID","MTS","AMOUNT","RATE_DAILY","PERIOD"]
[311705216,1705344635175,-7633.8898,0.00022693,2]
[311705217,1705344635185,-24437.6515,0.00022693,2]
[311705218,1705344635195,-1260.4086,0.00022693,2]
[311705219,1705344635205,-1000.0,0.00022693,2]
[311705220,1705344635218,-479.18494094,0.00022694,2]
[311705221,1705344635228,-158.48766215,0.00022697,2]
[311705222,1705344635239,-300.0,0.000227,8]
[311705223,1705344635250,-159.04,0.00022708,2]
[311705224,1705344635260,-503.24,0.00022749,2]
[311705225,1705344635270,-1127.97754977,0.00022785,2]
[311705226,1705344635280,-265435.43924695,0.00022793,2]
[311705227,1705344635290,-13138.29009636,0.00022794,2]
[311705228,1705344635300,-2166.93,0.00022794,2]
[311705229,1705344635310,-2787.26804333,0.00022795,2]
[311705230,1705344635320,-166.776333,0.00022795,2]
[311705231,1705344635332,-6364.48016863,0.00022796,2]
[311705232,1705344635341,-2047.83521066,0.00022796,2]
[311705233,1705344635352,-1782.41005188,0.00022796,2]
[311705234,1705344635363,-257.01604354,0.00022796,2]
[311705235,1705344635373,-16870.0126946,0.00022796,2]
[311705236,1705344635384,-679.44503403,0.00022796,2]
[311705237,1705344635394,-314.68238419,0.00022796,2]
[311705238,1705344635405,-3679.10809462,0.00022796,2]
[311705239,1705344635416,-380.86134382,0.00022796,2]
[311705240,1705344635426,-6130.87461683,0.00022796,2]
[311705241,1705344635436,-3335.6662,0.00022797,2]
[311705242,1705344635446,-715.6235,0.00022797,2]
[311705243,1705344635458,-6956.43,0.00022797,2]
[311705244,1705344635469,-38578.4385,0.00022797,2]
[311705245,1705344635479,-700.0,0.000228,8]
[311705246,1705344635489,-154.11,0.00022831,2]
[311705247,1705344635499,-503.24,0.00022863,2]
[311705248,1705344635509,-1127.97754977,0.00022885,2]
[311705249,1705344635520,-914.75035507,0.00022893,2]
[311705250,1705344635530,-638423.67881365,0.00022895,2]
[311705251,1705344635541,-10569.52280735,0.00022896,2]
[311705252,1705344635551,-245000.0,0.00022897,2]
[311705253,1705344635561,-150.2144193,0.000229,2]
[311705254,1705344635572,-1000.0,0.000229,8]
[311705255,1705344635585,-1300.0,0.00022904,2]
[311705256,1705344635595,-1386.0,0.00022904,2]
[311705257,1705344635605,-503.24,0.00022977,2]
[311705258,1705344635615,-224.43,0.00022982,10]
[311705259,1705344635625,-170.22,0.00023075,2]
[311705260,1705344635635,-503.24,0.00023091,2]
[311705261,1705344635645,-156.98,0.00023118,2]
[311705262,1705344635655,-159.04,0.00023182,2]
[311705263,1705344635665,-503.24,0.00023204,2]
[311705264,1705344635675,-500.0,0.00023288,2]
[311705265,1705344635684,-249.33794154,0.00023288,2]
[311705266,1705344635694,-468.33621346,0.00023288,2]
[311705267,1705344635704,-468.33621346,0.00023288,2]
[311705268,1705344635715,-503.24,0.00023318,2]
[311705269,1705344635725,-1140.2,0.0002339,2]
[311705270,1705344635734,-503.24,0.00023432,2]
[311705271,1705344635744,-503.24,0.00023546,2]
[311705272,1705344635753,-159.04,0.00023657,2]
[311705273,1705344635762,-503.24,0.0002366,2]
[311705274,1705344635772,-6364.48016858,0.00023746,2]
[311705275,1705344635781,-170.22,0.00023756,2]
[311705276,1705344635791,-503.24,0.00023773,2]
[311705277,1705344635800,-205.0,0.00023942,2]
[311705278,1705344635810,-568.37,0.00024021,2]
[311705279,1705344635820,-1848.74143818,0.00024087,2]
[311705280,1705344635830,-159.04,0.00024132,2]
[311705281,1705344635840,-1140.2,0.00024368,2]
[311705282,1705344635851,-210.0,0.0002443,2]
[311705283,1705344635860,-170.22,0.00024437,2]
[311705284,1705344635873,-158.48766211,0.00024473,2]
[311705285,1705344635883,-156.98,0.00024482,2]
[311705286,1705344635892,-159.04,0.00024606,2]
[311705287,1705344635902,-250.0,0.00024658,2]
[311705288,1705344635912,-826.99,0.00024675,2]
[311705289,1705344635921,-6364.48016858,0.00024695,2]
[311705290,1705344635931,-200.0,0.00025,2]
[311705291,1705344635941,-350.0,0.00025,3]
[311705292,1705344635951,-1000.0,0.00025,2]
[311705293,1705344635962,-519.71243716,0.00025,2]
[311705294,1705344635975,-159.04,0.00025081,2]
[311705295,1705344635985,-170.22,0.00025118,2]
[311705296,1705344635995,-1140.2,0.00025347,2]
[311705297,1705344636005,-3338.0,0.000255,2]
[311705298,1705344636014,-159.04,0.00025556,2]
[311705299,1705344636024,-1848.74143818,0.00025581,2]
[311705300,1705344636033,-34727.0,0.000256,2]
[311705301,1705344636043,-6364.48016858,0.00025645,2]
[311705302,1705344636052,-205.0,0.00025659,4]
[311705303,1705344636062,-170.22,0.00025798,2]
[311705304,1705344636072,-156.98,0.00025846,2]
[311705305,1705344636081,-1400.0,0.000259,9]
[311705306,1705344636091,-5000.0,0.00026,2]
[311705307,1705344636101,-159.04,0.0002603,2]
[311705308,1705344636110,-150.0,0.00026079,2]
[311705309,1705344636121,-158.48766211,0.00026249,2]
[311705310,1705344636130,-568.37,0.00026284,2]
[311705311,1705344636139,-1140.2,0.00026325,2]
[311705312,1705344636149,-159.04,0.00026505,2]
[311705313,1705344636159,-3060.19,0.00026575,2]
[311705314,1705344636169,-6364.48016858,0.00026595,2]
[311705315,1705344636178,-258.0,0.00026873,2]
[311705316,1705344636187,-150.0,0.00026901,2]
[311705317,1705344636198,-150.0,0.00026901,2]
[311705318,1705344636208,-238.97168019,0.00026968,3]
[311705319,1705344636218,-282.98338153,0.00026968,3]
[311705320,1705344636228,-159.04,0.00026979,2]
[311705321,1705344636237,-400.0,0.00027,3]
[311705322,1705344636247,-415.86531502,0.00027,2]
[311705323,1705344636256,-1848.74143818,0.00027075,3]
[311705324,1705344636264,-1140.2,0.00027303,2]
[311705325,1705344636272,-150.0,0.00027328,4]
[311705326,1705344636281,-205.0,0.00027377,7]
[311705327,1705344636290,-250.0,0.00027397,2]
[311705328,1705344636299,-257.65174878,0.000274,2]
[311705329,1705344636309,-826.99,0.00027417,2]
[311705330,1705344636319,-6364.48016858,0.00027545,2]
[311705331,1705344636329,-158.03,0.00027567,2]
[311705332,1705344636338,-158.03,0.00027713,2]
[311705333,1705344636348,-150.0,0.00027755,7]
[311705334,1705344636358,-16870.01269458,0.00027848,2]
[311705335,1705344636367,-679.44503401,0.00027848,2]
[311705336,1705344636377,-314.68238418,0.00027848,2]
[311705337,1705344636386,-3679.1080946,0.00027848,2]
[311705338,1705344636396,-380.8613438,0.00027848,2]
[311705339,1705344636405,-6130.87461681,0.00027848,2]
[311705340,1705344636415,-158.03,0.00027858,2]
[311705341,1705344636425,-2047.83521065,0.00027862,2]
[311705342,1705344636434,-1782.41005188,0.00027912,2]
[311705343,1705344636444,-257.01604353,0.00027912,2]
[311705344,1705344636453,-158.03,0.00028003,2]
[311705345,1705344636464,-158.48766211,0.00028024,2]
[311705346,1705344636473,-158.03,0.00028148,2]
[311705347,1705344636483,-388.12,0.00028163,2]
[311705348,1705344636493,-150.0,0.00028182,7]
[311705349,1705344636502,-1140.2,0.00028282,2]
[311705350,1705344636512,-158.03,0.00028293,2]
[311705351,1705344636522,-158.03,0.00028438,2]
[311705352,1705344636531,-6364.48016858,0.00028494,2]
[311705353,1705344636541,-568.37,0.00028548,2]
[311705354,1705344636551,-1848.74143818,0.00028568,4]
[311705355,1705344636560,-158.03,0.00028583,2]
[311705356,1705344636570,-150.0,0.00028609,7]
[311705357,1705344636579,-158.03,0.00028728,2]
[311705358,1705344636589,-7999.99,0.00028741,6]
[311705359,1705344636599,-578.0,0.00028741,5]
[311705360,1705344636608,-1000.0,0.00028767,2]
[311705361,1705344636618,-1000.0,0.00028767,2]
[311705362,1705344636628,-1000.0,0.00028767,2]
[311705363,1705344636638,-150.0,0.00028792,2]
[311705364,1705344636648,-176.2,0.000288,2]
[311705365,1705344636657,-500.0,0.000288,2]
[311705366,1705344636667,-158.03,0.00028873,2]
[311705367,1705344636676,-150.0,0.000289,2]
[311705368,1705344636687,-450.0,0.00029,3]
[311705369,1705344636697,-158.03,0.00029018,2]
[311705370,1705344636706,-150.0,0.00029024,2]
[311705371,1705344636718,-1500.0,0.00029025,2]
[311705372,1705344636728,-150.0,0.00029032,2]
[311705373,1705344636847,-150.0,0.00029033,2]
[311705374,1705344636858,-150.0,0.00029036,7]
[311705375,1705344636869,-150.0,0.00029038,2]
[311705376,1705344636880,-150.0,0.00029039,2]
[311705377,1705344636890,-150.0,0.00029039,2]
[311705378,1705344636898,-150.0,0.00029042,2]
[311705379,1705344636907,-150.0,0.00029045,2]
[311705380,1705344636917,-150.0,0.00029048,2]
[311705381,1705344636927,-150.0,0.00029048,2]
[311705382,1705344636936,-150.0,0.00029048,2]
[311705383,1705344636947,-150.0,0.00029056,2]
[311705384,1705344636957,-150.0,0.00029058,2]
[311705385,1705344636971,-150.0,0.00029059,2]
[311705386,1705344636982,-200.0,0.00029062,2]
[311705387,1705344636992,-150.0,0.00029063,2]
[311705388,1705344637002,-150.0,0.00029068,2]
[311705389,1705344637010,-150.0,0.00029072,2]
[311705390,1705344637019,-150.0,0.0002908,2]
[311705391,1705344637028,-150.0,0.00029081,2]
[311705392,1705344637037,-150.0,0.00029084,2]
[311705393,1705344637046,-205.0,0.00029094,10]
[311705394,1705344637056,-156813.67452157,0.000291,2]
[311705395,1705344637065,-200.0,0.00029107,3]
[311705396,1705344637075,-200.0,0.00029107,3]
[311705397,1705344637084,-150.0,0.00029107,2]
[311705398,1705344637093,-150.0,0.00029107,2]
[311705399,1705344637103,-150.0,0.00029112,2]
[311705400,1705344637112,-150.0,0.00029122,2]
[311705401,1705344637121,-150.0,0.00029125,2]
[311705402,1705344637130,-150.0,0.00029127,2]
[311705403,1705344637140,-150.0,0.00029129,2]
[311705404,1705344637149,-150.0,0.00029132,2]
[311705405,1705344637159,-150.0,0.00029136,2]
[311705406,1705344637169,-150.0,0.00029142,2]
[311705407,1705344637178,-150.0,0.00029146,2]
[311705408,1705344637188,-150.0,0.00029148,2]
[311705409,1705344637198,-150.0,0.00029148,2]
[311705410,1705344637207,-150.0,0.00029152,2]
[311705411,1705344637220,-150.0,0.00029154,2]
[311705412,1705344637229,-150.0,0.00029157,2]
[311705413,1705344637239,-150.0,0.00029157,2]
[311705414,1705344637249,-150.0,0.00029157,2]
[311705415,1705344637258,-158.03,0.00029163,2]
[311705416,1705344637268,-150.0,0.00029164,2]
[311705417,1705344637277,-150.0,0.00029164,2]
[311705418,1705344637287,-150.0,0.00029168,2]
[311705419,1705344637296,-150.0,0.0002917,2]
[311705420,1705344637306,-150.0,0.0002917,2]
[311705421,1705344637315,-150.0,0.00029175,2]
[311705422,1705344637324,-294.16,0.00029176,2]
[311705423,1705344637335,-294.16,0.00029176,2]
[311705424,1705344637344,-293.44,0.00029176,2]
[311705425,1705344637354,-150.0,0.00029189,2]
[311705426,1705344637363,-150.0,0.00029191,2]
[311705427,1705344637373,-198.1282,0.00029194,2]
[311705428,1705344637383,-150.0,0.00029198,2]
[311705429,1705344637392,-171.98990679,0.000292,2]
[311705430,1705344637402,-150.0,0.000292,2]
[311705431,1705344637412,-247.44372753,0.000292,2]
[311705432,1705344637421,-150.0,0.00029205,2]
[311705433,1705344637431,-150.0,0.00029208,2]
[311705434,1705344637440,-150.0,0.00029209,2]
[311705435,1705344637450,-150.0,0.00029212,2]
[311705436,1705344637460,-150.0,0.00029217,2]
[311705437,1705344637470,-150.0,0.00029218,2]
[311705438,1705344637479,-150.0,0.00029232,2]
[311705439,1705344637488,-150.0,0.00029248,2]
[311705440,1705344637498,-150.0,0.00029249,2]
[311705441,1705344637507,-150.0,0.00029252,2]
[311705442,1705344637517,-150.0,0.00029256,2]
[311705443,1705344637528,-150.0,0.0002926,2]
[311705444,1705344637538,-1140.2,0.0002926,2]
[311705445,1705344637548,-214.92297291,0.00029264,2]
[311705446,1705344637557,-150.0,0.00029265,2]
[311705447,1705344637568,-150.0,0.00029267,2]
[311705448,1705344637577,-150.0,0.00029272,2]
[311705449,1705344637587,-150.0,0.00029282,2]
[311705450,1705344637598,-150.0,0.00029285,2]
[311705451,1705344637608,-150.0,0.00029291,2]
[311705452,1705344637617,-150.0,0.00029293,2]
[311705453,1705344637627,-266.28376109,0.00029294,2]
[311705454,1705344637636,-1586.60487373,0.00029294,2]
[311705455,1705344637645,-37424.75231385,0.00029295,2]
[311705456,1705344637655,-1000.0,0.00029295,2]
[311705457,1705344637664,-158.03,0.00029309,2]
[311705458,1705344637673,-352.12,0.00029348,2]
[311705459,1705344637683,-6364.48016858,0.00029444,2]
[311705460,1705344637692,-150.0,0.00029448,2]
[311705461,1705344637701,-158.03,0.00029454,2]
[311705462,1705344637712,-150.0,0.00029463,7]
[311705463,1705344637722,-188.31609233,0.000295,3]
[311705464,1705344637731,-170.51230635,0.00029562,2]
[311705465,1705344637740,-158.03,0.00029599,2]
[311705466,1705344637749,-11807.9489,0.000297,2]
[311705467,1705344637759,-1000.0,0.000297,2]
[311705468,1705344637768,-158.03,0.00029744,2]
[311705469,1705344637778,-207.1041,0.000298,2]
[311705471,1705344637788,-5000.0,0.000298,2]
[311705473,1705344637797,-2000.0,0.000298,3]
[311705475,1705344637808,-190.13262646,0.000298,2]
[311705477,1705344637821,-158.48766211,0.000298,2]
[311705479,1705344637830,-1700.0,0.000298,10]
[311705481,1705344637839,-256.46,0.000298,2]
[311705483,1705344637848,-158.03,0.00029889,2]
[311705485,1705344637858,-1127.97754977,0.0002989,2]
[311705487,1705344637868,-284.59524524,0.0002989,7]
[311705488,1705344637880,-260.69675541,0.0002989,7]
[311705489,1705344637890,-511.51644991,0.00029899,7]
[311705490,1705344637899,-1000.0,0.00029899,2]
[311705491,1705344637908,-1000.0,0.00029899,2]
[311705492,1705344637917,-1000.0,0.00029899,2]
[311705493,1705344637926,-801.42,0.00029899,2]
[311705494,1705344637935,-300.0,0.00029899,2]
[311705495,1705344637945,-300.0,0.00029899,2]
[311705496,1705344637954,-1306262.33531242,0.000299,6]
[311705531,1705344638618,-352.96549063,0.000299,6]
[311705532,1705344638634,-3575.20240066,0.000299,6]
[311705536,1705344638753,-421.42042927,0.000299,6]
[311705539,1705344638764,-341.48500725,0.000299,6]
[311705541,1705344638776,-517.85068696,0.000299,6]
[311705543,1705344638788,-929.82241406,0.000299,6]
[311705545,1705344638800,-1134.72,0.000299,6]
[311705548,1705344638812,-39154.20366295,0.000299,6]
[311705550,1705344638823,-28040.09999992,0.000299,6]
[311705552,1705344638834,-617.55407124,0.000299,6]
[311705556,1705344638858,-543.83,0.000299,6]
[311705558,1705344638881,-667.61891395,0.000299,6]
[311705561,1705344638892,-27538.99739513,0.000299,6]
[311705563,1705344638903,-570.09,0.000299,6]
[311705565,1705344638914,-1357.89469464,0.000299,6]
[311705637,1705344639577,-2494.94839903,0.000299,6]
[311705639,1705344639590,-17097.78511536,0.000299,6]
[311705641,1705344639601,-603.01113768,0.000299,6]
[311705806,1705344641569,-13568.94544138,0.00022895,2]
[311705809,1705344641580,-1915.4599066,0.00022895,2]
[311705811,1705344641591,-117658.26964874,0.00022895,2]
[311705814,1705344641612,-459.33057317,0.00022895,2]
[311705816,1705344641623,-273.4299999,0.00022895,2]
[311705818,1705344641634,-3459.8795862,0.00022895,2]
[311705820,1705344641645,-2197.4250838,0.00022895,2]
[311705822,1705344641656,-13441.21662406,0.00022895,2]
[311705825,1705344641681,-19643.33469332,0.00022895,2]
[311705826,1705344641691,-620.07290513,0.00022895,2]
[311705827,1705344641716,-1029.48543277,0.00022895,2]
[311705828,1705344641755,-2507.220432,0.00022895,2]
[311705829,1705344641767,-1241.30702114,0.00022895,2]
[311705830,1705344641778,-2165.47067557,0.00022895,2]
[311705831,1705344641790,-494.06016399,0.00022895,2]
[311705835,1705344641825,-259363.61057026,0.00022895,2]
[311705837,1705344641836,-29226.05274577,0.00022895,2]
[311705839,1705344641848,-47675.82837321,0.00022895,2]
[311705842,1705344641865,-125018.80730754,0.00022895,2]
[311705844,1705344641877,-217501.40612383,0.00022895,2]
[311705846,1705344641887,-150.0,0.00029025,2]
[311705848,1705344641897,-150.0,0.00029035,2]
[311705850,1705344641906,-150.0,0.00029069,2]
[311705852,1705344641915,-150.0,0.00029101,2]
[311705854,1705344641924,-150.0,0.00029112,2]
[311705856,1705344641933,-150.0,0.00029113,2]
[311705858,1705344641943,-150.0,0.00029119,2]
[311705860,1705344641952,-150.0,0.00029183,2]
[311705863,1705344641963,-150.0,0.00029236,2]
[311705865,1705344641972,-150.0,0.00029249,2]
[311705867,1705344641981,-150.0,0.0002925,2]
[311705868,1705344641990,-150.0,0.00029252,2]
[311705871,1705344642000,-150.0,0.00029264,2]
[311705873,1705344642009,-150.0,0.00029275,2]
[311705875,1705344642020,-664.89885946,0.000299,6]
[311705877,1705344642032,-408039.01232501,0.000299,6]
[311705879,1705344642041,-5084.54102581,0.000299,2]
[311705881,1705344642053,-92953.92897419,0.000299,2]
[311705883,1705344642063,-62590.05,0.000299,2]
[311705885,1705344642072,-151.0,0.000299,7]
[311705888,1705344642084,-151.0,0.000299,7]
[311705890,1705344642093,-151.0,0.000299,7]
[311705891,1705344642103,-151.0,0.000299,7]
[311705894,1705344642113,-300.0,0.000299,10]
[311705896,1705344642122,-11583.94,0.000299,2]
[311705898,1705344642132,-241.833236,0.000299,7]
[311705899,1705344642141,-151.0,0.000299,7]
[311705901,1705344642150,-159.238064,0.000299,7]
[311705903,1705344642159,-257.772495,0.000299,7]
[311705905,1705344642169,-257.772495,0.000299,7]
[311705907,1705344642178,-154.997044,0.000299,7]
[311705910,1705344642188,-154.997044,0.000299,7]
[311705912,1705344642197,-8130.48,0.000299,2]
[311705913,1705344642206,-151.43808406,0.00029924,2]
[311705916,1705344642217,-151.43808406,0.00029924,2]
[311705918,1705344642226,-151.43808406,0.00029924,2]
[311705920,1705344642235,-151.43808406,0.00029924,2]
[311705922,1705344642245,-151.43808406,0.00029924,2]
[311705924,1705344642254,-151.43808406,0.00029924,2]
[311705926,1705344642263,-151.43808406,0.00029924,2]
[311705928,1705344642275,-151.43808406,0.00029924,2]
[311705930,1705344642285,-151.43808406,0.00029924,2]
[311705932,1705344642296,-151.43808406,0.00029924,2]
[311705934,1705344642305,-151.43808406,0.00029924,2]
[311705936,1705344642315,-151.43808406,0.00029924,2]
[311705938,1705344642325,-151.43808406,0.00029924,2]
[311705940,1705344642334,-151.43808406,0.00029924,2]
[311705942,1705344642344,-151.43808406,0.00029924,2]
[311705944,1705344642354,-151.43808406,0.00029924,2]
[311705945,1705344642363,-151.43808406,0.00029924,2]
[311705947,1705344642372,-151.43808406,0.00029924,2]
[311705950,1705344642382,-151.43808406,0.00029924,2]
[311705951,1705344642391,-151.43808406,0.00029924,2]
[311705953,1705344642400,-151.43808406,0.00029924,2]
[311705956,1705344642410,-151.43808406,0.00029924,2]
[311705958,1705344642419,-151.43808406,0.00029924,2]
[311705959,1705344642428,-151.43808406,0.00029924,2]
[311705962,1705344642438,-151.43808406,0.00029924,2]
[311705964,1705344642447,-151.43808406,0.00029924,2]
[311705966,1705344642457,-151.43808406,0.00029924,2]
[311705967,1705344642467,-151.43808406,0.00029924,2]
[311705970,1705344642476,-151.43808406,0.00029924,2]
[311705971,1705344642486,-151.43808406,0.00029924,2]
[311705973,1705344642495,-151.43808406,0.00029924,2]
[311705975,1705344642505,-151.43808406,0.00029924,2]
[311705978,1705344642515,-151.43808406,0.00029924,2]
[311705980,1705344642524,-151.43808406,0.00029924,2]
[311705982,1705344642534,-800.0,0.00029945,2]
[311705984,1705344642543,-300.0,0.00029979,2]
[311705986,1705344642552,-300.0,0.00029979,2]
[311706045,1705344642965,-112197.23365956,0.0002998,2]
[311706049,1705344642988,-115616.44042222,0.0002998,2]
[311706052,1705344643000,-501.4899541,0.0002998,2]
[311706056,1705344643012,-300.0,0.0002998,2]
[311706074,1705344643111,579.62287515,0.0002201,2]
[311706087,1705344644094,-492.6875681,0.0002998,2]
[311706088,1705344644107,-595.45137922,0.0002998,2]
[311706090,1705344644241,-1638.49718638,0.0002998,2]
[311706091,1705344644259,-2274.01447761,0.0002998,2]
[311706092,1705344644270,-825.28,0.0002998,2]
[311706093,1705344644281,-756.131,0.0002998,2]
[311706094,1705344644293,-315.6,0.0002998,2]
[311706095,1705344644304,-918.92275125,0.0002998,2]
[311706096,1705344644315,-646.78408094,0.0002998,2]
[311706097,1705344644327,-1789.87381781,0.0002998,2]
[311706180,1705344649318,-128713.2806287,0.0002998,2]
[311706181,1705344650076,-508.58444147,0.0002998,2]
[311706182,1705344650092,-177948.6872931,0.0002998,2]
[311706183,1705344650867,-584.0,0.00028942,5]
[311706184,1705344650877,-8973.8911438,0.0002998,2]
[311706185,1705344651701,579.62287507,0.00022051,2]
[311706186,1705344652055,-2993.13408009,0.0002998,2]
[311706187,1705344652067,-21844.58657581,0.0002998,2]
[311706188,1705344652083,-512.06592781,0.0002998,2]
[311706189,1705344652095,-1215.3762477,0.0002998,2]
[311706190,1705344652110,-4234.28820693,0.0002998,2]
[311706191,1705344652126,-2618.5042061,0.0002998,2]
[311706192,1705344652139,-3892.78825873,0.0002998,2]
[311706193,1705344653019,-1000.0,0.00022113,2]
[311706194,1705344653030,-215.00753688,0.00022894,2]
[311706195,1705344653039,-281.06931535,0.00029856,2]
[311706196,1705344653053,-463.84499955,0.00029856,2]
[311706197,1705344653066,-428.12,0.00029856,2]
[311706198,1705344653084,-155.0,0.00022894,2]
[311706199,1705344653095,-326.9656851,0.00029856,2]
[311706200,1705344653105,-770.93442553,0.00029898,2]
[311706201,1705344653115,-766.56988649,0.0002998,2]
[311706202,1705344653128,-34601.6,0.0002998,2]
[311706203,1705344653140,-1276.24555056,0.0002998,2]
[311706204,1705344653227,-8076.55927657,0.00029979,2]
[311706205,1705344653236,-6005.03774237,0.0002998,2]
[311706206,1705344654387,579.62287507,0.00022093,2]
[311706207,1705344655120,516.17501819,0.0002205,2]
[311706208,1705344655819,352.26,0.00021895,2]
[311706209,1705344657238,-391.0576,0.0002211,2]
[311706210,1705344657259,-1911.86862272,0.00022111,2]
[311706211,1705344657282,-1233.11299604,0.00022112,2]
[311706212,1705344657306,-155.0,0.00022115,2]
[311706213,1705344657329,-579.62287507,0.00022134,2]
[311706214,1705344658788,579.62287507,0.00022175,2]
[311706215,1705344668703,437.8418,0.0002211,2]
[311706216,1705344686824,94515.3843,0.00022115,2]
[311706218,1705344715462,196.4889311,6.94e-05,2]
[311706219,1705344715483,13931.86953069,6.94e-05,2]
[311706228,1705344801817,158.5,0.00021774,2]
[311706229,1705344802064,158.5,0.00021991,2]
[311706230,1705344803317,154.36,0.00021964,2]
[311706231,1705344812826,74852.0,0.00021853,2]
[311706232,1705344833724,1626.79811907,0.000181,2]
[311706233,1705344840045,400.0,0.0002,2]
[311706234,1705344851787,1000.0,0.000135,2]
[311706235,1705344851878,282.4154419,0.000125,2]
[311706250,1705344864270,235.07936904,0.00022,2]
[311706251,1705344868700,205.50749381,0.0001,2]
[311706252,1705344880578,168.95,0.00021876,2]
[311706253,1705344921668,150.0,0.00022,2]
[311706258,1705344941634,224.44,0.00021632,10]
[311706259,1705344973671,685.49,0.00021674,2]
[311706260,1705344984778,270.08,0.00021669,2]
[311706261,1705345015221,462.58,0.00019762,2]
[311706262,1705345015425,462.58,0.00022026,2]
[311706264,1705345043979,200.0,0.00021918,2]
[311706266,1705345063716,2660.15446985,0.00020605,5]
[311706267,1705345153695,2000.0,0.00021712,2]
[311706268,1705345219787,250.0,0.00021739,2]
[311706269,1705345227304,609.38,0.00021722,2]
[311706270,1705345248246,2027.30334452,0.00021495,2]
[311706271,1705345249103,305.53108644,0.00021712,2]
[311706272,1705345250870,243.62417864,0.00021722,2]
[311706273,1705345259720,154.82,0.00021889,2]
[311706274,1705345260121,154.82,0.0002197,2]
[311706275,1705345260466,467.34600521,0.00022044,2]
[311706276,1705345260602,154.82,0.00022052,2]
[311706277,1705345265718,467.34600505,0.00022084,2]
[311706278,1705345267475,176.2,0.00022,2]
[311706279,1705345269947,437.31,0.00021693,2]
[311706280,1705345270247,437.31,0.00021807,2]
[311706281,1705345270808,437.31,0.00021922,2]
[311706282,1705345270995,437.31,0.00022036,2]
[311706283,1705345275042,155.0,0.00021806,2]
[311706284,1705345276302,542.9635753,0.00021806,2]
[311706285,1705345276329,523.6967926,0.00021806,2]
[311706286,1705345276355,1202.95567145,0.00021806,2]
[311706287,1705345324708,152.77,0.00021804,2]
[311706288,1705345332084,-2000.0,0.00022115,2]
[311706289,1705345332870,-778.97771353,0.00022115,2]
[311706290,1705345332891,-220.95063616,0.00022115,2]
[311706291,1705345332912,-1000.07165031,0.00022115,2]
[311706292,1705345333308,-532.61615679,0.00022114,2]
[311706293,1705345333330,-1467.38384321,0.00022115,2]
[311706294,1705345333841,-536.09439439,0.00022115,2]
[311706295,1705345333863,-286.52776858,0.00022115,2]
[311706296,1705345333883,-155.0,0.00022115,2]
[311706297,1705345333904,-260.05395446,0.00022116,2]
[311706298,1705345333927,-762.32388257,0.00022116,2]
[311706299,1705345334597,-1382.10987561,0.00022116,2]
[311706300,1705345334618,-617.89012439,0.00022116,2]
[311706301,1705345367561,-758.57178046,0.0002211,2]
[311706302,1705345367582,-155.0,0.0002211,2]
[311706303,1705345367602,-1086.42821954,0.0002211,2]
[311706304,1705345368146,-802.82782827,0.0002211,2]
[311706305,1705345368177,-196.8387694,0.0002211,2]
[311706306,1705345368203,-384.0309261,0.0002211,2]
[311706307,1705345368226,-473.02074418,0.0002211,2]
[311706308,1705345368251,-143.28173205,0.00022111,2]
[311706309,1705345368699,-2000.0,0.00022111,2]
[311706310,1705345370459,-175.29898281,0.00022111,2]
[311706311,1705345370483,-1824.70101719,0.00022111,2]
[311706312,1705345371044,-2000.0,0.00022111,2]
[311706313,1705345379288,-2000.0,0.0002211,2]